bitfinex-derivatives/quotes_ETHF0:USTF0_20240930
["timestamp","ask_amount","ask_price","bid_price","bid_amount"]
[1727666094566,1.85935031,2620.3,2620.2,0.38163]
[1727666094766,0.3711,2620.3,2620.2,0.38163]
[1727666095869,15.37796548,2620.3,2619.9,2.38]
[1727666096073,2.36686548,2620.2,2620.0,0.38165]
[1727666096266,1.98226548,2620.1,2620.0,0.38165]
[1727666096463,5.79906548,2620.1,2620.0,0.38165]
[1727666096966,5.80183632,2620.1,2620.0,0.38165]
[1727666097173,3.8168,2620.1,2620.0,0.38165]
[1727666097563,0.3846,2620.2,2620.1,0.38164]
[1727666097967,4.2014,2620.2,2620.1,0.38164]
[1727666098177,0.3846,2620.2,2620.1,2.76164]
[1727666098563,2.86619695,2620.2,2620.1,2.76164]
[1727666098962,2.86619695,2620.2,2620.1,0.38164]
[1727666099472,0.3846,2620.2,2620.1,0.38164]
[1727666100671,4.2014,2620.2,2619.9,0.38166]
[1727666100874,2.4827953,2620.0,2619.9,0.38166]
[1727666101277,9.5073953,2620.0,2619.8,0.38168]
[1727666101571,3.8168,2619.9,2619.2,6.54221]
[1727666101764,2.48341942,2619.5,2619.2,5.5878]
[1727666102166,1.98671503,2619.3,2619.2,5.5878]
[1727666102371,0.3875,2619.8,2619.2,5.5878]
[1727666102372,1.98671503,2619.4,2619.2,5.5878]
[1727666102564,1.98671503,2619.3,2619.2,5.96957]
[1727666102764,2.48341942,2619.6,2619.3,0.38176]
[1727666102765,1.98671503,2619.4,2619.3,0.38176]
[1727666102969,1.4897447,2619.4,2619.3,2.76176]
[1727666103276,0.8698447,2619.5,2619.4,0.38174]
[1727666103778,0.99319184,2619.6,2619.5,0.38173]
[1727666103981,0.99319184,2619.6,2619.5,6.36333]
[1727666104170,1.98671503,2620.1,2619.8,2.38]
[1727666104479,0.7917,2620.6,2620.4,0.38159]
[1727666104480,0.3915,2620.6,2620.4,0.38159]
[1727666104682,0.3915,2620.6,2619.9,3.2078]
[1727666104683,0.3816,2620.5,2619.9,3.2078]
[1727666104982,3.2078,2620.3,2619.7,0.95426]
[1727666105166,3.2078,2620.3,2619.5,3.6016]
[1727666105167,3.2078,2620.3,2619.5,4.5559]
[1727666105365,0.4162,2620.2,2619.5,1.3481]
[1727666105567,0.4162,2620.2,2619.5,0.3938]
[1727666105771,0.4162,2620.2,2619.7,0.3817]
[1727666106361,0.4162,2620.2,2619.5,0.3938]
[1727666106572,0.4162,2620.2,2619.7,0.95423]
[1727666106773,0.4162,2620.2,2620.1,0.38164]
[1727666106969,3.2078,2620.3,2620.2,0.38163]
[1727666107277,0.3816,2620.5,2620.0,0.95413]
[1727666107578,0.3816,2620.5,2620.4,0.3816]
[1727666107765,5.19451503,2621.0,2620.8,0.38153]
[1727666107963,4.215,2620.9,2620.8,0.38153]
[1727666108167,4.215,2620.9,2620.2,0.95407]
[1727666108367,3.2078,2620.7,2620.1,0.4004]
[1727666108668,3.2078,2620.7,2619.5,3.3135131]
[1727666108669,2.38,2620.6,2619.7,3.33422]
[1727666108873,2.38,2620.6,2620.0,0.38165]
[1727666108874,3.2078,2620.4,2620.0,0.38165]
[1727666109072,0.3724,2620.3,2620.0,0.38165]
[1727666109278,0.7722,2620.3,2620.2,0.38163]
[1727666109575,0.3998,2620.3,2620.2,0.38163]
[1727666109770,0.3998,2620.3,2620.0,2.38]
[1727666109970,0.3998,2620.3,2620.1,0.38164]
[1727666110468,0.3998,2620.3,2619.7,0.95425]
[1727666110469,3.8168,2620.2,2619.7,0.95425]
[1727666110677,3.2078,2620.1,2620.0,0.38164]
[1727666110878,0.3998,2620.3,2620.1,0.38163]
[1727666111176,0.3998,2620.3,2620.2,0.38163]
[1727666111779,10.2978,2620.3,2619.0,0.3818]
[1727666111983,3.2078,2619.1,2618.5,0.10695746]
[1727666112280,1.98671503,2619.7,2618.4,2.38]
[1727666112281,3.5913,2619.0,2618.4,2.38]
[1727666112484,3.5913,2619.0,2618.5,0.38187]
[1727666112485,0.3835,2619.0,2618.5,0.38187]
[1727666112702,0.3835,2619.0,2618.3,3.2078]
[1727666112980,0.3835,2619.0,2618.5,2.76187]
[1727666113171,0.3835,2619.0,2618.5,2.38]
[1727666113371,3.5913,2619.0,2618.2,2.38]
[1727666113566,3.2078,2618.7,2618.1,0.98508556]
[1727666113776,3.2078,2618.7,2618.1,0.79263]
[1727666114175,3.2078,2618.7,2618.1,0.79262]
[1727666114376,3.2078,2618.7,2618.1,0.79263]
[1727666115277,3.2078,2618.7,2618.5,0.38186]
[1727666115578,0.1071738,2619.5,2618.7,0.38184]
[1727666115780,0.1071738,2619.5,2619.0,3.2078]
[1727666115982,3.2078,2619.4,2618.8,1.9704]
[1727666116176,0.3751,2619.4,2618.8,0.3834]
[1727666116374,0.3751,2619.4,2618.8,0.76523]
[1727666116573,0.3751,2619.4,2618.9,3.58961]
[1727666116783,3.2078,2619.7,2618.9,7.71711425]
[1727666117078,0.3978,2619.8,2618.9,7.71711425]
[1727666117274,0.3978,2619.8,2618.9,7.33530425]
[1727666117275,3.2078,2619.7,2618.9,7.33530425]
[1727666117677,3.2078,2619.7,2618.9,3.2078]
[1727666118088,3.2078,2619.7,2619.0,0.38179]
[1727666119079,3.2078,2619.7,2618.9,3.2078]
[1727666119278,3.2078,2619.7,2619.0,0.38179]
[1727666119779,3.2078,2619.7,2619.1,0.38179]
[1727666119986,3.2078,2619.7,2618.9,3.2078]
[1727666120290,3.2078,2619.7,2619.0,0.38179]
[1727666120493,3.2078,2619.7,2618.9,3.2078]
[1727666120792,3.2078,2619.7,2619.0,0.3818]
[1727666120986,3.2078,2619.7,2618.9,3.58961]
[1727666121292,3.2078,2619.7,2618.9,3.2078]
[1727666121587,3.2078,2619.7,2618.5,4.90137736]
[1727666121588,3.2078,2619.3,2619.0,4.05326503]
[1727666121780,0.3856,2619.9,2618.9,0.38181]
[1727666121781,0.3831,2619.2,2618.9,0.38181]
[1727666121985,0.3831,2619.2,2618.8,0.38182]
[1727666122185,0.3831,2619.2,2618.7,3.2078]
[1727666122384,0.3913,2619.1,2618.6,0.38]
[1727666122687,0.3913,2619.1,2618.6,0.76185]
[1727666123282,0.3831,2619.2,2618.7,2.94]
[1727666123582,0.3913,2619.9,2619.7,0.38169]
[1727666123780,0.3913,2619.9,2619.7,0.38168]
[1727666123781,0.4068,2619.9,2619.7,0.38168]
[1727666123990,0.4068,2619.9,2619.4,6.1478]
[1727666123991,0.4068,2619.9,2619.6,0.3817]
[1727666124293,0.7869,2620.5,2619.8,0.38168]
[1727666124294,3.2078,2620.4,2619.8,0.38168]
[1727666124486,3.6146,2620.4,2619.8,0.38168]
[1727666124691,3.6146,2620.4,2619.5,0.4012]
[1727666124985,3.2078,2620.1,2619.7,0.38169]
[1727666125195,3.2078,2620.1,2619.6,0.38171]
[1727666125388,3.2078,2620.1,2619.5,0.38173]
[1727666125583,3.2078,2620.1,2619.1,3.2078]
[1727666125584,3.2078,2620.1,2619.7,0.3817]
[1727666125789,3.2078,2620.1,2619.4,0.38174]
[1727666125999,3.2078,2620.1,2619.1,3.2078]
[1727666126000,3.2078,2620.1,2619.5,0.38172]
[1727666126390,3.2078,2620.1,2619.6,0.38171]
[1727666127689,3.2078,2620.1,2619.6,0.3817]
[1727666127888,3.2078,2620.1,2619.1,4.16224]
[1727666128082,3.2078,2620.1,2619.5,0.38172]
[1727666128500,3.2078,2620.1,2619.7,0.38169]
[1727666128790,3.2078,2620.1,2619.4,3.2078]
[1727666128994,3.2078,2620.1,2619.7,0.38169]
[1727666129191,3.2078,2620.1,2619.4,3.2078]
[1727666129697,3.2078,2619.7,2619.2,0.38177]
[1727666129895,0.7679,2619.6,2619.0,0.4012]
[1727666130195,1.17,2619.6,2619.3,0.38174]
[1727666130492,1.17,2619.6,2619.2,0.38176]
[1727666130696,1.17,2619.6,2619.0,3.609]
[1727666130994,1.17,2619.6,2618.9,0.01]
[1727666130995,3.2078,2619.4,2618.9,0.01]
[1727666131184,3.2078,2619.4,2618.9,0.96454]
[1727666131390,3.2078,2619.4,2619.3,0.38176]
[1727666131693,7.0254,2619.4,2618.9,0.96454]
[1727666131994,3.2078,2619.4,2618.9,0.01]
[1727666132193,3.2078,2619.4,2619.1,0.38178]
[1727666132396,3.2078,2619.4,2618.9,0.01]
[1727666132588,3.2078,2619.4,2619.1,0.38178]
[1727666132895,1.17,2619.6,2618.9,0.01]
[1727666133103,1.17,2619.6,2619.5,0.38173]
[1727666133608,4.9876,2619.6,2619.1,0.38179]
[1727666133898,1.17,2619.6,2619.2,0.38176]
[1727666134086,1.17,2619.6,2619.0,3.2078]
[1727666134286,3.15671503,2619.6,2619.2,0.38177]
[1727666134490,3.15671503,2619.6,2619.0,3.2078]
[1727666134697,1.98671503,2619.5,2619.0,3.58959]
[1727666134900,1.98671503,2619.5,2619.1,0.38177]
[1727666135091,1.98671503,2619.5,2618.2,0.38192]
[1727666135092,8.13451503,2619.2,2618.2,0.38192]
[1727666135289,8.13451503,2619.2,2617.8,0.3868]
[1727666135290,3.2078,2618.3,2617.8,0.3868]
[1727666135489,3.2078,2618.3,2618.1,0.38192]
[1727666135704,3.2078,2618.3,2617.8,0.3868]
[1727666136091,3.2078,2618.3,2618.0,0.38194]
[1727666136389,5.19451503,2618.3,2617.7,0.38198]
[1727666136588,3.2078,2618.0,2617.6,0.382]
[1727666136789,3.2078,2618.0,2617.7,0.38198]
[1727666136997,3.2078,2618.0,2617.8,0.38197]
[1727666138194,3.2078,2618.0,2617.3,0.3845]
[1727666138195,3.2078,2618.0,2617.9,0.38196]
[1727666138401,0.393,2618.1,2617.4,3.2078]
[1727666138590,0.393,2618.1,2617.9,0.38195]
[1727666138786,0.393,2618.1,2617.4,3.2078]
[1727666138995,0.393,2618.1,2617.9,0.38195]
[1727666139403,4.213,2618.1,2617.9,0.38195]
[1727666139796,0.393,2618.1,2617.9,0.38195]
[1727666140099,0.393,2618.1,2617.4,3.2078]
[1727666140696,0.393,2618.1,2617.7,0.38198]
[1727666140898,3.2078,2618.0,2617.7,0.38198]
[1727666141194,3.2078,2618.0,2617.7,0.38199]
[1727666141394,2.48341942,2618.5,2617.8,3.82]
[1727666141395,1.98671503,2618.5,2617.8,3.82]
[1727666141603,1.98671503,2618.5,2618.0,3.2078]
[1727666141604,0.3825,2618.5,2618.0,3.2078]
[1727666141792,2.86931942,2619.0,2618.1,0.3834]
[1727666141793,1.98671503,2618.9,2618.1,0.3834]
[1727666141998,1.98671503,2618.9,2618.7,0.38184]
[1727666142194,5.58041503,2619.0,2618.3,4.16257]
[1727666142398,5.58041503,2619.0,2618.8,0.38182]
[1727666142591,3.5937,2619.0,2618.3,4.16257]
[1727666142793,3.5937,2619.0,2618.7,0.38184]
[1727666143295,3.2078,2619.0,2618.6,3.2078]
[1727666143497,0.3825,2619.2,2619.1,0.38179]
[1727666143699,0.3825,2619.2,2619.0,0.3818]
[1727666144105,0.3825,2619.2,2619.1,0.38179]
[1727666144498,3.5903,2619.2,2619.1,0.38179]
[1727666144701,3.2078,2619.2,2619.1,0.38179]
[1727666145005,3.2078,2619.5,2619.4,0.38174]
[1727666145203,0.4179,2619.6,2619.1,0.95446]
[1727666145402,3.6257,2619.6,2619.5,0.38173]
[1727666145897,3.6257,2619.6,2619.1,0.95446]
[1727666146100,3.6257,2619.6,2619.5,0.38173]
[1727666146301,3.6257,2619.6,2619.1,0.95446]
[1727666146800,3.6257,2619.6,2618.9,3.2078]
[1727666147000,3.6257,2619.6,2619.3,0.38175]
[1727666147201,3.6257,2619.6,2619.0,0.95451]
[1727666147402,3.6257,2619.6,2619.3,0.38175]
[1727666147613,3.6257,2619.6,2619.0,0.95451]
[1727666147804,3.6257,2619.6,2619.1,0.95447]
[1727666147999,3.6257,2619.6,2619.0,0.95451]
[1727666148511,3.6257,2619.6,2618.9,3.2078]
[1727666148512,3.6257,2619.6,2619.1,0.95447]
[1727666148699,3.6257,2619.6,2619.3,0.38175]
[1727666149607,2.48341942,2619.5,2619.3,0.38175]
[1727666149809,2.48341942,2619.5,2619.4,0.38174]
[1727666150011,2.48341942,2619.6,2619.2,0.95443]
[1727666150224,2.48341942,2619.6,2619.5,0.38173]
[1727666150406,2.48341942,2619.7,2619.6,0.38171]
[1727666150606,10.36765511,2620.2,2619.5,3.2078]
[1727666150607,2.48341942,2619.8,2619.7,0.3817]
[1727666150802,2.48341942,2619.8,2619.5,3.6068]
[1727666151002,2.48341942,2619.7,2619.6,0.38171]
[1727666151404,2.48341942,2619.7,2619.5,0.38171]
[1727666151610,2.48669031,2619.6,2619.5,0.38173]
[1727666152107,3.2078,2619.9,2619.2,4.16223]
[1727666152108,6.19565511,2619.9,2619.2,4.16223]
[1727666152310,6.19565511,2619.9,2619.5,0.38171]
[1727666152610,6.19565511,2619.9,2619.4,0.38173]
[1727666152815,2.48689731,2619.5,2619.4,0.38173]
[1727666153012,2.48689731,2619.5,2619.2,3.2078]
[1727666153316,2.48689731,2619.5,2619.2,3.58957]
[1727666153317,1.98950699,2619.3,2619.2,3.58957]
[1727666154205,2.48689731,2619.3,2619.2,3.58957]
[1727666154406,2.48689731,2619.3,2618.8,0.95458]
[1727666154407,3.8176,2619.3,2618.8,0.95458]
[1727666154610,3.8176,2619.3,2619.0,0.38179]
[1727666154611,2.48770551,2619.1,2619.0,0.38179]
[1727666154812,2.48770551,2619.1,2618.7,4.16241]
[1727666154813,2.48770551,2619.1,2618.7,3.2078]
[1727666155028,0.3918,2619.3,2618.7,3.2078]
[1727666155029,1.98987459,2618.8,2618.7,0.38183]
[1727666156412,1.98987459,2619.0,2618.7,9.8184]
[1727666156711,1.98987459,2619.0,2618.9,0.38182]
[1727666156919,2.48734324,2619.1,2619.0,0.3818]
[1727666157814,1.99049539,2619.5,2619.3,0.38176]
[1727666158010,5.19829539,2619.6,2619.3,0.38176]
[1727666158813,5.19829539,2619.6,2619.4,0.38173]
[1727666159410,5.19829539,2619.6,2619.3,0.38175]
[1727666159609,5.19829539,2619.6,2618.9,3.2078]
[1727666159610,5.80809539,2619.5,2618.9,4.16234]
[1727666159816,5.80809539,2619.5,2619.1,0.38177]
[1727666159817,1.99049539,2619.5,2619.1,0.38177]
[1727666160211,1.99049539,2619.5,2619.0,0.95451]
[1727666160418,1.99049539,2619.5,2618.9,3.2078]
[1727666160712,3.2078,2619.6,2619.4,0.38174]
[1727666160713,5.19829539,2619.6,2619.4,0.38174]
[1727666161416,5.97799539,2619.7,2619.0,0.95451]
[1727666161620,0.3972,2619.7,2619.6,0.38171]
[1727666162617,6.00019539,2620.1,2619.8,0.38167]
[1727666162917,0.4216,2620.2,2619.5,3.2078]
[1727666162918,1.99049539,2620.2,2619.5,3.2078]
[1727666163223,1.99049539,2620.2,2619.6,0.3817]
[1727666163224,1.49367063,2619.9,2619.6,0.3817]
[1727666163516,1.49367063,2619.7,2619.5,3.2078]
[1727666163717,1.49367063,2619.6,2619.5,3.2078]
[1727666163912,1.49367063,2619.6,2619.5,3.58953]
[1727666164107,1.49367063,2619.8,2619.5,7.0254]
[1727666164308,1.89337063,2620.0,2619.8,0.38168]
[1727666164518,1.89337063,2620.0,2619.9,0.38167]
[1727666164519,0.3997,2620.0,2619.9,0.38167]
[1727666164822,1.89587063,2620.1,2619.6,0.95429]
[1727666164823,2.48734324,2620.1,2619.6,0.95429]
[1727666165119,2.48734324,2620.2,2620.1,0.38164]
[1727666165312,1.9907802,2620.2,2619.9,0.95416]
[1727666165611,1.9907802,2620.2,2620.1,0.38164]
[1727666166614,1.9907802,2620.3,2619.9,0.95416]
[1727666166816,1.49245912,2620.1,2620.0,0.38166]
[1727666167611,1.9907802,2620.3,2620.0,3.8168]
[1727666167612,1.49245912,2620.3,2620.0,3.8168]
[1727666167810,2.3904802,2620.4,2620.1,3.2078]
[1727666168005,1.49204959,2620.3,2620.0,0.3823]
[1727666168217,1.49204959,2620.2,2620.1,0.38163]
[1727666168917,1.9907802,2620.3,2620.0,0.3823]
[1727666169216,1.9907802,2620.3,2620.2,0.38163]
[1727666169611,1.9907802,2620.3,2620.1,0.38164]
[1727666169917,1.9907802,2620.3,2619.8,0.95421]
[1727666170117,0.8119,2620.4,2620.0,0.38164]
[1727666170118,1.9907802,2620.2,2620.0,0.38164]
[1727666170419,1.9907802,2620.2,2619.5,5.11639]
[1727666170420,1.9907802,2620.2,2619.5,4.16209]
[1727666170617,1.49152915,2619.8,2619.6,0.38171]
[1727666170810,0.403,2619.7,2619.6,0.38171]
[1727666171016,2.3937802,2619.7,2619.6,0.38171]
[1727666172825,4.2206,2619.7,2619.1,3.2078]
[1727666173013,4.2206,2619.7,2619.3,0.38175]
[1727666173014,4.69952513,2619.6,2619.3,0.38175]
[1727666173219,0.3814,2619.5,2619.4,0.38174]
[1727666173818,0.3814,2619.5,2619.3,0.38175]
[1727666174024,0.3814,2619.5,2619.1,3.2078]
[1727666174215,0.3814,2619.5,2619.2,0.38177]
[1727666174615,0.3814,2619.5,2619.3,0.38176]
[1727666174822,0.3814,2619.5,2619.4,0.38174]
[1727666175018,3.2078,2619.6,2619.5,0.38173]
[1727666175221,5.10252513,2619.7,2619.1,4.16224]
[1727666175416,0.3922,2619.6,2619.3,0.38175]
[1727666175611,1.88392513,2619.6,2619.3,0.38175]
[1727666175825,5.70152513,2619.6,2619.3,0.38175]
[1727666176022,1.88392513,2619.6,2619.3,0.38175]
[1727666176223,5.70152513,2619.6,2619.4,0.38174]
[1727666176520,5.30932513,2619.5,2619.4,0.38174]
[1727666176718,5.30932513,2619.5,2619.3,0.38174]
[1727666176923,0.397,2619.4,2619.3,0.38174]
[1727666177426,0.397,2619.4,2618.8,2.32874]
[1727666177723,5.09652513,2619.4,2618.8,0.4196]
[1727666177923,5.09652513,2619.4,2619.3,0.38176]
[1727666178226,5.09652513,2619.4,2619.2,0.95444]
[1727666178227,1.49172513,2619.6,2619.2,0.95444]
[1727666178416,5.10252513,2619.7,2619.2,0.95444]
[1727666178612,0.403,2619.7,2619.6,0.38171]
[1727666179719,0.01,2619.9,2619.8,0.38168]
[1727666180220,1.50175834,2619.9,2619.8,0.38168]
[1727666180728,0.01,2619.9,2619.8,0.38168]
[1727666181024,0.01,2619.9,2619.8,4.19848]
[1727666181621,0.01,2619.9,2619.8,3.58948]
[1727666182427,0.01,2619.9,2619.8,7.40628]
[1727666182619,0.01,2619.9,2619.8,3.58948]
[1727666183019,0.01,2619.9,2619.8,3.2078]
[1727666183327,2.0007802,2619.9,2619.8,3.2078]
[1727666183519,2.0007802,2619.9,2619.8,3.58948]
[1727666184319,0.01,2619.9,2619.8,3.58948]
[1727666184930,0.47070822,2620.2,2619.8,17.96528]
[1727666185117,2.48734324,2620.8,2620.7,0.38155]
[1727666185324,0.8235,2621.1,2620.7,3.2078]
[1727666185325,2.48734324,2621.0,2620.7,3.2078]
[1727666185625,3.31084324,2621.1,2621.0,0.38151]
[1727666186019,2.90104324,2621.1,2621.0,0.38151]
[1727666186217,2.90104324,2621.1,2620.8,0.95384]
[1727666186218,2.90104324,2621.1,2620.7,3.2078]
[1727666186417,2.90104324,2621.1,2620.8,0.38153]
[1727666186621,2.90104324,2621.1,2620.7,3.2078]
[1727666186622,2.48734324,2621.0,2620.7,0.38155]
[1727666186823,2.48734324,2621.0,2620.3,4.55803]
[1727666187026,2.48734324,2620.9,2620.6,0.38156]
[1727666187332,2.48734324,2620.7,2620.4,0.38159]
[1727666187518,3.2078,2620.9,2620.1,0.38164]
[1727666187519,2.48734324,2620.5,2620.1,0.38164]
[1727666187720,2.48734324,2620.3,2619.9,0.95418]
[1727666187921,2.48734324,2620.3,2620.2,0.38163]
[1727666188243,0.4061,2620.4,2620.0,0.95414]
[1727666188527,2.49161511,2620.2,2619.8,0.95422]
[1727666188721,2.87531511,2620.1,2619.9,0.38167]
[1727666188919,2.49161511,2620.0,2619.8,0.38167]
[1727666189122,2.49161511,2620.0,2619.7,3.58949]
[1727666189333,6.30841511,2620.0,2619.3,0.95437]
[1727666189539,2.49161511,2619.8,2619.3,0.95437]
[1727666189830,3.2078,2620.0,2619.2,3.5896]
[1727666189831,2.49161511,2619.7,2619.2,3.5896]
[1727666190027,2.49161511,2619.6,2619.2,3.5896]
[1727666190337,0.3837,2619.5,2619.3,0.38175]
[1727666190630,5.69941511,2619.4,2618.7,3.2078]
[1727666190825,2.49161511,2619.1,2618.7,3.2078]
[1727666191124,2.49161511,2619.1,2618.5,0.3818]
[1727666191125,2.49161511,2618.9,2618.8,3.58963]
[1727666191325,2.49161511,2619.0,2618.9,0.38182]
[1727666191527,3.37155511,2619.5,2618.8,3.2078]
[1727666191528,2.49161511,2619.1,2618.8,3.2078]
[1727666191836,2.49161511,2619.2,2619.0,0.3818]
[1727666192135,2.49161511,2619.1,2619.0,0.3818]
[1727666192628,2.49161511,2619.1,2618.8,3.2078]
[1727666192824,6.31001511,2619.1,2618.8,3.58962]
[1727666193024,2.49161511,2619.0,2618.9,0.38182]
[1727666193322,2.49161511,2619.0,2618.8,3.2078]
[1727666193529,6.31001511,2619.0,2618.8,3.58962]
[1727666193930,6.31001511,2619.0,2618.8,0.38182]
[1727666194133,2.49161511,2619.0,2618.9,0.38182]
[1727666194522,6.31001511,2619.0,2618.9,0.38182]
[1727666194932,5.69941511,2619.4,2618.9,0.38182]
[1727666195244,5.69941511,2619.4,2619.0,0.38179]
[1727666195622,3.2078,2619.4,2618.7,4.16241]
[1727666195825,3.2078,2619.4,2619.1,0.38179]
[1727666196632,3.2078,2619.4,2618.9,0.38182]
[1727666196841,3.2078,2619.4,2618.7,3.2078]
[1727666197025,2.87531511,2619.5,2618.7,3.2078]
[1727666197026,0.3837,2619.5,2619.3,0.38176]
[1727666197224,0.3837,2619.5,2619.1,0.95447]
[1727666197225,0.3837,2619.5,2619.4,0.38174]
[1727666197427,0.3837,2619.5,2619.0,3.2078]
[1727666198532,2.87531511,2619.5,2619.1,0.38178]
[1727666198732,0.3837,2619.5,2619.2,0.38177]
[1727666199735,0.3837,2619.5,2619.2,0.38176]
[1727666200835,0.3837,2619.5,2619.0,3.2078]
[1727666200836,4.2013,2619.5,2619.1,0.38178]
[1727666201139,0.3837,2619.5,2619.0,3.2078]
[1727666201339,3.2078,2619.4,2618.8,0.95458]
[1727666201638,5.69941511,2619.4,2618.8,0.38182]
[1727666202135,3.2078,2619.1,2618.6,3.2078]
[1727666202341,0.7945,2619.0,2618.6,3.2078]
[1727666202539,0.4173,2618.9,2618.6,3.2078]
[1727666203040,3.8184,2618.8,2618.6,3.2078]
[1727666203433,7.0262,2618.7,2617.7,3.2078]
[1727666203630,3.2078,2618.3,2618.1,0.38193]
[1727666203835,3.2078,2618.3,2617.9,0.38196]
[1727666204033,3.2078,2618.3,2617.8,0.95492]
[1727666204230,3.2078,2618.3,2617.7,0.3942]
[1727666204432,3.2078,2618.3,2617.5,0.38201]
[1727666204433,2.94,2618.1,2617.5,0.38201]
[1727666204626,2.94,2618.1,2617.3,0.98518836]
[1727666204627,3.2078,2617.6,2617.3,1.37938836]
[1727666205137,3.2078,2617.6,2617.5,0.38202]
[1727666205647,7.0278,2617.6,2617.5,0.38202]
[1727666208643,3.2078,2617.6,2617.5,0.38202]
[1727666208945,3.2078,2617.9,2617.8,0.38198]
[1727666211537,0.4069,2618.5,2617.7,0.4289]
[1727666211538,3.2078,2618.3,2617.7,0.4289]
[1727666211747,3.2078,2618.3,2618.2,0.38192]
[1727666212249,7.027,2618.3,2618.2,0.38192]
[1727666212746,3.2078,2618.3,2618.2,0.38192]
[1727666214045,3.3274,2618.7,2618.5,0.38186]
[1727666214046,3.2078,2618.6,2618.5,0.38186]
[1727666215149,3.2078,2618.6,2618.1,0.4125]
[1727666215150,3.2078,2618.9,2618.7,0.38183]
[1727666215450,3.2078,2618.9,2618.8,0.38183]
[1727666216841,3.2078,2618.9,2618.5,0.95466]
[1727666217041,3.2078,2618.9,2618.7,0.38184]
[1727666217945,3.2078,2618.9,2618.3,1.38963]
[1727666218144,3.2078,2618.9,2618.5,0.38186]
[1727666219246,3.2078,2618.6,2618.4,0.38188]
[1727666219642,3.2078,2618.6,2618.3,0.38189]
[1727666219844,3.2078,2618.6,2618.2,0.38191]
[1727666220042,3.2078,2618.6,2618.3,0.38189]
[1727666220242,3.2078,2618.6,2618.4,0.38187]
[1727666220947,3.2078,2618.6,2618.2,0.9548]
[1727666221151,3.2078,2618.6,2618.5,0.38187]
[1727666222362,3.2078,2618.9,2618.8,0.38183]
[1727666223354,5.19850028,2619.5,2619.4,0.38174]
[1727666223540,5.19850028,2619.5,2618.9,2.86365]
[1727666223541,3.2078,2619.5,2619.1,0.95446]
[1727666224049,3.2078,2619.5,2619.4,0.38174]
[1727666224456,3.2078,2619.5,2619.3,0.42]
[1727666224641,3.2078,2619.5,2619.3,0.80174]
[1727666225052,3.2078,2619.5,2619.4,0.38174]
[1727666225351,5.19850028,2619.8,2619.6,0.3817]
[1727666225646,5.19850028,2619.8,2619.5,0.38171]
[1727666226041,9.01610028,2619.8,2619.3,0.80174]
[1727666226246,9.01610028,2619.8,2619.5,0.38172]
[1727666226247,5.19850028,2619.8,2619.5,0.38172]
[1727666226543,5.19850028,2619.8,2619.3,1.37439]
[1727666226744,5.19850028,2619.8,2619.6,0.3817]
[1727666226949,5.19850028,2619.8,2619.4,0.95436]
[1727666226950,3.8176,2619.7,2619.4,0.38173]
[1727666227251,3.8176,2619.7,2619.3,0.80174]
[1727666227252,3.2078,2619.5,2619.3,0.80174]
[1727666228350,3.2078,2619.5,2619.4,0.38174]
[1727666228647,3.2078,2619.5,2619.3,0.42]
[1727666228852,3.2078,2619.5,2619.3,0.80175]
[1727666229243,3.2078,2619.5,2619.4,0.38174]
[1727666229444,3.2078,2619.5,2619.3,0.80175]
[1727666230355,3.2078,2619.5,2619.0,0.95451]
[1727666230656,5.19850028,2619.5,2619.2,0.38176]
[1727666230851,5.61310028,2619.5,2619.2,0.38176]
[1727666231052,5.61310028,2619.5,2619.1,0.38177]
[1727666231351,5.61310028,2619.5,2619.0,0.95451]
[1727666231651,5.19850028,2619.2,2618.9,0.4137]
[1727666231855,5.19850028,2619.2,2618.7,0.38183]
[1727666232150,2.48837535,2619.3,2618.4,0.95473]
[1727666232151,1.99070028,2618.8,2618.4,0.95473]
[1727666232353,1.99070028,2618.8,2618.7,0.38183]
[1727666232354,3.2078,2618.8,2618.7,0.38183]
[1727666233249,7.0262,2618.8,2618.7,0.38183]
[1727666233455,3.2078,2618.8,2618.7,0.38183]
[1727666233953,7.0262,2618.8,2618.7,0.38183]
[1727666234155,9.51457535,2618.8,2618.6,0.38185]
[1727666234453,5.69617535,2618.8,2618.6,0.38185]
[1727666234650,2.48837535,2618.7,2618.6,0.38185]
[1727666235550,3.2078,2618.8,2618.5,0.95469]
[1727666235551,5.69617535,2618.8,2618.7,0.38184]
[1727666236246,9.51457535,2618.8,2618.7,0.38184]
[1727666236448,7.0262,2618.8,2618.7,0.38184]
[1727666237049,3.2078,2618.8,2618.7,0.38184]
[1727666237662,5.70392994,2618.8,2618.7,0.38184]
[1727666237958,3.2078,2618.8,2618.7,0.38184]
[1727666238655,3.2078,2618.8,2618.5,1.90935]
[1727666238656,1.99674583,2618.9,2618.4,3.24608]
[1727666238850,1.99674583,2618.9,2618.3,2.3084]
[1727666238851,1.99674583,2618.9,2618.8,0.38183]
[1727666239256,5.70404795,2619.1,2618.9,0.38182]
[1727666239257,1.99674583,2619.0,2618.9,0.38182]
[1727666240350,5.70404795,2619.1,2619.0,0.3818]
[1727666240564,5.20427616,2619.1,2619.0,0.3818]
[1727666240754,2.49624795,2619.3,2618.8,2.30852]
[1727666240755,1.99647616,2619.2,2619.1,0.38179]
[1727666241063,2.49624795,2619.3,2619.2,0.38177]
[1727666241560,3.6224,2619.5,2619.2,0.38177]
[1727666241561,2.49624795,2619.4,2619.3,0.38176]
[1727666241857,2.49624795,2619.4,2618.9,0.4373]
[1727666241858,3.8176,2619.4,2618.9,0.4373]
[1727666242061,2.49551276,2619.2,2619.1,0.38178]
[1727666242253,6.61025511,2619.5,2619.1,0.38178]
[1727666242654,6.61025511,2619.5,2619.0,0.38179]
[1727666242856,6.61025511,2619.5,2618.8,3.2078]